bitfinex/quotes_ETHUSD_20250319
["timestamp","ask_amount","ask_price","bid_price","bid_amount"]
[1742392518596,4.94205,2023.5,2023.1,10.45789]
[1742392519016,4.94174,2023.6,2023.2,4.89265]
[1742392519204,10.50160681,2023.7,2022.8,6.70303092]
[1742392519205,0.804,2023.7,2023.0,5.515]
[1742392519412,5.515,2023.9,2023.6,4.94152]
[1742392519413,0.7646,2023.9,2023.6,4.94152]
[1742392519728,0.7646,2023.9,2023.5,9.88361]
[1742392519729,4.94101,2023.9,2023.5,9.88361]
[1742392519899,4.94101,2023.9,2023.5,4.94179]
[1742392520103,0.7646,2024.1,2023.4,4.94217]
[1742392520104,4.94047,2024.1,2023.7,3.0]
[1742392520431,2.03775541,2024.3,2023.7,4.94143]
[1742392520432,4.9404,2024.2,2023.7,4.94143]
[1742392520603,4.209078,2023.7,2023.5,3.0]
[1742392520806,4.94146,2023.7,2023.4,3.0]
[1742392521028,0.7624,2023.9,2023.3,7.94227]
[1742392521332,4.94147,2023.7,2023.4,4.94196]
[1742392521533,4.94169,2023.6,2023.3,3.0]
[1742392521725,0.7624,2023.5,2023.3,3.0]
[1742392522511,0.7624,2023.5,2023.3,7.94241]
[1742392522710,0.7624,2023.5,2023.3,3.0]
[1742392522912,5.70443,2023.5,2023.1,7.94284]
[1742392523134,4.9423,2023.4,2023.1,3.0]
[1742392523534,5.70443,2023.5,2023.1,7.94279]
[1742392523731,5.70443,2023.5,2023.1,12.88559]
[1742392523935,0.7624,2023.5,2023.3,7.94231]
[1742392524136,1.864217,2023.7,2023.3,3.0]
[1742392524438,0.6805487,2023.6,2023.3,3.0]
[1742392524743,4.94193,2023.5,2023.3,3.0]
[1742392524907,1.864217,2023.7,2023.0,3.0]
[1742392524908,4.94217,2023.4,2023.0,3.0]
[1742392525111,4.94217,2023.4,2022.5,0.98817517]
[1742392525112,4.94275,2023.2,2022.7,5.72569]
[1742392525309,4.94299,2023.1,2022.7,5.72569]
[1742392525506,0.988574,2023.1,2022.8,4.94363]
[1742392525807,0.775,2023.4,2022.9,3.0]
[1742392525808,4.94252,2023.3,2022.9,3.0]
[1742392526151,3.0,2022.9,2022.8,3.0]
[1742392526339,5.71464,2023.0,2022.6,4.94407]
[1742392526645,4.94351,2022.9,2022.6,3.0]
[1742392526937,4.94351,2022.9,2022.6,7.9441]
[1742392527436,5.77652681,2022.9,2022.5,4.9443]
[1742392527637,5.77652681,2022.9,2022.6,3.0]
[1742392527638,10.72013681,2022.9,2022.6,3.0]
[1742392527841,4.94365,2022.8,2022.5,3.0]
[1742392528043,4.94365,2022.8,2022.3,5.515]
[1742392528044,0.7529,2023.4,2022.8,0.796]
[1742392528356,4.9429,2023.1,2022.4,0.45918771]
[1742392528541,0.7529,2023.2,2022.4,5.40374771]
[1742392528542,4.75615681,2023.0,2022.4,5.40374771]
[1742392528717,0.47561568,2022.9,2022.4,0.45918771]
[1742392529037,5.72914,2022.9,2022.4,5.40373771]
[1742392529344,4.94374,2022.8,2022.4,4.94455]
[1742392529568,4.9448,2022.4,2021.9,5.73821]
[1742392529738,0.49448,2022.3,2021.9,4.94584]
[1742392529916,4.94444,2022.5,2022.1,9.89041]
[1742392530108,4.94483,2022.4,2021.9,4.94584]
[1742392530326,4.94455,2022.5,2021.9,4.94581]
[1742392530508,4.94455,2022.5,2022.1,4.94527]
[1742392530805,4.94358,2022.9,2022.3,4.94463]
[1742392531009,5.70322,2022.8,2022.4,4.94451]
[1742392531354,4.58784421,2022.7,2022.4,3.0]
[1742392531565,4.58784421,2022.7,2022.3,4.94474]
[1742392531566,4.58784421,2022.5,2022.3,4.94474]
[1742392531836,4.58784421,2022.5,2022.2,4.9451]
[1742392532042,10.48540663,2022.5,2022.1,8.75321]
[1742392532351,10.48540663,2022.5,2022.1,4.94531]
[1742392532534,9.53288421,2022.3,2021.9,4.9457]
[1742392532714,4.58784421,2022.1,2021.8,5.77068]
[1742392532917,5.77068,2021.8,2021.7,4.94632]
[1742392533117,4.58784421,2021.9,2021.5,5.77141]
[1742392533443,6.35777363,2021.9,2021.6,4.94656]
[1742392533740,0.8166,2021.9,2021.6,4.94642]
[1742392533941,0.8166,2021.9,2021.7,7.94632]
[1742392534141,3.641391,2021.7,2021.6,4.94642]
[1742392534349,5.41514421,2022.1,2021.9,4.94572]
[1742392534549,4.58784421,2022.1,2022.0,4.94559]
[1742392534747,5.54102663,2022.5,2021.8,4.94608]
[1742392535049,5.54102663,2022.5,2022.2,4.94508]
[1742392535349,0.95318242,2022.5,2022.2,4.94499]
[1742392535554,0.95318242,2022.5,2022.2,4.94489]
[1742392536129,0.95318242,2022.5,2022.0,4.94537]
[1742392536130,5.89767242,2022.5,2022.1,4.94528]
[1742392536351,0.66631724,2022.4,2022.1,4.94528]
[1742392536533,0.95318242,2022.5,2022.1,4.9452]
[1742392536843,17.091,2022.7,2022.5,4.94437]
[1742392537043,0.7673,2022.9,2022.6,4.9441]
[1742392537258,5.7107,2022.9,2022.6,4.94396]
[1742392537483,15.9927959,2023.1,2022.7,4.94369]
[1742392537696,4.94351,2022.9,2022.4,7.94456]
[1742392537849,4.7655459,2022.5,2022.0,4.94551]
[1742392538052,4.94487,2022.3,2021.9,8.71539]
[1742392538286,4.94487,2022.3,2021.9,9.89135]
[1742392538459,5.49700459,2022.4,2022.1,4.94527]
[1742392538460,0.55215459,2022.4,2022.1,4.94527]
[1742392538656,0.55215459,2022.4,2022.0,4.94559]
[1742392538657,5.49678459,2022.4,2022.0,4.94559]
[1742392539547,0.55215459,2022.4,2021.9,3.0]
[1742392539913,0.7926,2022.2,2021.9,7.94579]
[1742392540378,0.8273,2022.7,2022.1,3.0]
[1742392540573,4.94439,2022.5,2022.1,4.94524]
[1742392541077,4.94505,2022.3,2021.9,4.94573]
[1742392541258,0.577235,2022.2,2021.9,7.94573]
[1742392541461,0.577235,2022.2,2021.9,12.89138]
[1742392541663,0.577235,2022.2,2021.9,7.94565]
[1742392541863,0.577235,2022.2,2021.9,12.89136]
[1742392542183,4.94505,2022.3,2021.9,12.89136]
[1742392542549,4.94505,2022.3,2021.9,3.0]
[1742392542754,4.94505,2022.3,2021.9,7.94567]
[1742392542953,4.94502,2022.3,2021.9,3.0]
[1742392543189,4.94519,2022.2,2021.9,7.94581]
[1742392543385,4.94519,2022.2,2021.6,6.2844]
[1742392543386,4.94572,2022.0,2021.6,4.94648]
[1742392543982,4.94572,2022.0,2021.4,11.27221]
[1742392543983,4.94587,2021.9,2021.5,4.94673]
[1742392544285,4.94609,2021.8,2021.5,4.94673]
[1742392544457,5.517,2022.0,2021.4,4.94705]
[1742392544664,4.94644,2021.7,2021.3,4.9472]
[1742392544859,5.77964,2021.7,2021.2,6.3488]
[1742392545078,4.9467,2021.6,2021.2,9.89488]
[1742392545273,1.072625,2021.6,2021.3,4.94721]
[1742392545677,1.072625,2021.6,2021.0,4.94786]
[1742392545678,4.94696,2021.5,2021.0,4.94786]
[1742392546056,4.94693,2021.5,2021.2,4.94754]
[1742392546358,6.10876309,2021.5,2021.0,7.94802]
[1742392546558,4.94739,2021.3,2020.9,5.77796]
[1742392546856,4.94766,2021.2,2020.8,4.94843]
[1742392547079,1.071665,2021.2,2020.8,4.94842]
[1742392547274,1.071665,2021.2,2020.9,4.94809]
[1742392547475,6.019295,2021.2,2020.9,4.94826]
[1742392548086,1.071665,2021.2,2020.9,4.94826]
[1742392548466,1.071665,2021.2,2020.9,3.0]
[1742392548704,1.16061609,2021.1,2020.9,3.0]
[1742392548998,5.5871459,2021.3,2020.9,7.9482]
[1742392549193,5.5871459,2021.3,2021.0,4.94803]
[1742392549382,4.94689,2021.5,2021.3,3.0]
[1742392549383,0.7759,2021.5,2021.3,3.0]
[1742392549692,0.7759,2021.5,2021.2,3.0]
[1742392549892,4.94748,2021.3,2020.9,3.0]
[1742392550085,11.51309259,2021.4,2020.9,3.0]
[1742392550269,11.51309259,2021.4,2020.9,4.94808]
[1742392550478,9.7128559,2021.3,2020.9,3.0]
[1742392550793,0.7932,2021.1,2020.6,3.0]
[1742392550964,1.84383459,2021.1,2020.8,3.0]
[1742392551164,1.84383459,2021.1,2020.8,7.9485]
[1742392551895,7.33912259,2021.4,2020.9,4.94815]
[1742392552193,1.82212259,2021.4,2021.0,4.94794]
[1742392552396,6.76921259,2021.4,2020.9,4.94823]
[1742392552601,6.76921259,2021.4,2020.9,7.94823]
[1742392552797,1.76080227,2021.3,2020.9,3.0]
[1742392553307,1.76080227,2021.3,2021.0,4.94795]
[1742392554320,0.7733,2021.4,2021.0,3.0]
[1742392554525,0.7998,2021.7,2021.3,3.0]
[1742392554705,0.7998,2021.7,2021.4,4.94693]
[1742392554880,0.7998,2021.7,2021.4,4.89693]
[1742392555075,5.39241501,2021.7,2021.5,4.94681]
[1742392555307,4.59261501,2021.7,2021.5,4.94681]
[1742392555977,4.59261501,2021.7,2021.4,4.94699]
[1742392556178,4.59261501,2021.7,2021.4,9.89388]
[1742392556421,4.59261501,2021.7,2021.4,4.94689]
[1742392556571,5.56987979,2021.7,2021.4,9.89381]
[1742392556918,5.56987979,2021.7,2021.4,4.94689]
[1742392557213,5.56987979,2021.7,2021.5,4.9466]
[1742392557419,3.7435,2021.5,2021.4,7.94699]
[1742392557624,5.56987979,2021.7,2021.4,7.94698]
[1742392557777,5.56987979,2021.7,2021.4,12.89387]
[1742392557979,4.59261501,2021.7,2021.5,4.94677]
[1742392558317,4.59261501,2021.7,2021.4,7.94689]
[1742392558484,4.59261501,2021.5,2021.4,3.0]
[1742392558681,4.59261501,2021.5,2021.1,11.27535]
[1742392558973,4.59261501,2021.2,2020.9,4.94821]
[1742392559191,4.59261501,2021.0,2020.9,4.94821]
[1742392559569,4.94821,2020.9,2020.8,4.94847]
[1742392559815,4.59261501,2021.0,2020.8,9.89689]
[1742392560015,4.59261501,2021.0,2020.9,7.94829]
[1742392560200,4.59261501,2021.2,2020.7,4.94878]
[1742392560404,4.59261501,2021.2,2021.1,4.9478]
[1742392560615,5.86477651,2021.4,2021.2,4.94741]
[1742392560789,5.86477651,2021.4,2021.1,4.9478]
[1742392560790,4.94741,2021.2,2021.1,4.9478]
[1742392560994,5.86477651,2021.4,2021.1,4.9477]
[1742392561214,0.8147,2021.7,2021.0,4.94804]
[1742392561510,4.59261501,2021.8,2021.5,4.94666]
[1742392561706,4.59261501,2021.8,2021.5,9.89338]
[1742392561879,4.59261501,2021.8,2021.5,4.94666]
[1742392562075,4.59261501,2021.8,2021.3,13.46408]
[1742392562420,4.59261501,2021.6,2021.4,3.0]
[1742392562645,4.59261501,2021.6,2021.3,3.0]
[1742392562646,4.59261501,2021.4,2021.3,3.0]
[1742392563138,0.8187,2021.7,2021.3,3.0]
[1742392563346,0.8187,2021.7,2021.4,4.94688]
[1742392563515,0.8187,2021.7,2021.5,4.94677]
[1742392563516,4.5153386,2021.7,2021.5,4.94677]
[1742392563729,4.5153386,2021.7,2021.5,9.89339]
[1742392563909,28.14857345,2021.9,2021.6,4.94657]
[1742392564114,17.862,2021.9,2021.7,4.94612]
[1742392564431,17.862,2021.9,2021.7,4.94622]
[1742392564632,10.47873345,2022.2,2021.8,4.94608]
[1742392564816,1.04787335,2022.1,2021.7,4.94614]
[1742392565141,0.764,2022.2,2022.0,4.94546]
[1742392565344,0.764,2022.2,2021.9,4.94567]
[1742392565543,0.764,2022.2,2022.0,4.94555]
[1742392565724,0.764,2022.2,2022.1,4.94535]
[1742392566246,0.764,2022.2,2022.0,9.89096]
[1742392566415,0.764,2022.2,2022.0,4.94541]
[1742392567126,0.764,2022.2,2022.1,4.94535]
[1742392567321,6.11633219,2022.4,2022.0,4.94553]
[1742392567541,3.84534456,2022.3,2022.0,9.89096]
[1742392567733,3.84534456,2022.3,2022.0,4.94543]
[1742392568055,3.84534456,2022.3,2022.0,9.89091]
[1742392568251,3.84534456,2022.3,2021.9,4.94582]
[1742392568419,3.84534456,2022.3,2022.0,4.94552]
[1742392568625,0.8033,2022.4,2022.2,4.9451]
[1742392568854,27.39257345,2022.5,2022.3,4.94477]
[1742392568855,17.106,2022.5,2022.3,4.94477]
[1742392569148,17.106,2022.5,2022.3,4.94469]
[1742392569453,17.106,2022.5,2022.4,4.94462]
[1742392569664,17.106,2022.5,2022.3,4.94478]
[1742392569866,17.106,2022.5,2022.4,4.94462]
[1742392570955,0.37544802,2022.7,2022.1,3.7842]
[1742392571144,15.47787345,2022.8,2022.3,4.94476]
[1742392571342,15.47786345,2022.8,2022.3,4.94471]
[1742392571726,5.59027345,2022.8,2022.6,4.94395]
[1742392572031,5.59027345,2022.8,2022.3,4.94484]
[1742392572237,6.70080079,2022.8,2022.5,4.94415]
[1742392572738,4.944,2022.7,2022.2,7.945]
[1742392572937,0.7758,2022.4,2022.2,7.945]
[1742392573133,0.7758,2022.4,2022.0,4.94539]
[1742392573338,0.55453735,2022.3,2022.1,7.94525]
[1742392573539,0.55453735,2022.3,2022.1,3.0]
[1742392573849,0.55453735,2022.3,2022.2,4.9451]
[1742392574048,0.7758,2022.4,2022.3,4.94486]
[1742392574231,4.76957345,2022.5,2022.3,4.94474]
[1742392574831,9.71395345,2022.5,2022.2,4.94508]
[1742392575042,4.76957345,2022.5,2022.1,4.94518]
[1742392575365,4.76957345,2022.5,2022.2,4.945]
[1742392575557,6.55029135,2022.4,2022.0,4.94556]
[1742392575731,11.49515135,2022.4,2022.0,4.94543]
[1742392575931,5.74024,2022.3,2021.9,7.94579]
[1742392576176,0.7953,2022.3,2021.9,3.0]
[1742392576379,0.7953,2022.3,2021.6,5.77957]
[1742392576380,0.7953,2022.3,2022.1,4.94534]
[1742392576582,1.60560135,2022.4,2022.3,4.94486]
[1742392576865,0.8056,2022.6,2022.2,4.94492]
[1742392577032,5.74973,2022.6,2022.2,4.94506]
[1742392577235,4.76957345,2022.5,2022.2,4.9451]
[1742392577441,4.76957345,2022.5,2021.9,4.94576]
[1742392577646,4.76957345,2022.5,2022.2,4.94486]
[1742392577841,6.31590979,2022.5,2022.2,4.94486]
[1742392578041,0.8056,2022.6,2022.4,4.94452]
[1742392578476,0.8056,2022.6,2022.3,4.94485]
[1742392578643,0.8056,2022.6,2022.5,4.94437]
[1742392578846,5.88010079,2022.8,2022.5,4.94437]
[1742392578847,6.65380079,2022.8,2022.5,4.94437]
[1742392579144,6.65380079,2022.8,2022.4,4.9445]
[1742392579145,2.24202811,2022.7,2022.4,4.9445]
[1742392579546,2.24202811,2022.7,2022.4,4.94448]
[1742392579854,2.24202811,2022.7,2022.6,4.94413]
[1742392580055,6.65380079,2022.8,2022.6,4.94394]
[1742392580773,0.36645035,2022.9,2022.3,4.94483]
[1742392580774,28.16087345,2023.1,2022.8,4.94351]
[1742392581169,33.10378345,2023.1,2022.7,4.94388]
[1742392581365,28.54171786,2023.1,2022.4,5.73247]
[1742392581675,4.94242,2023.3,2022.7,3.0]
[1742392581676,0.7984,2023.3,2022.7,3.0]
[1742392581876,0.7984,2023.3,2023.1,4.9428]
[1742392582172,0.7984,2023.5,2023.2,4.94266]
[1742392582364,0.7984,2023.5,2023.2,4.94264]
[1742392582365,3.082388,2023.5,2023.2,4.94264]
[1742392582573,3.082388,2023.5,2023.1,4.94276]
[1742392582574,0.7984,2023.5,2023.1,4.94276]
[1742392582780,4.76957345,2023.4,2023.2,3.0]
[1742392582976,4.9425,2023.3,2022.9,4.94338]
[1742392583285,4.94316,2023.0,2022.8,3.0]
[1742392583586,1.54856435,2022.9,2022.8,4.94364]
[1742392583752,5.59957345,2023.1,2022.8,9.88705]
[1742392584090,5.59957345,2023.1,2022.9,4.94338]
[1742392584386,10.54248345,2023.1,2022.7,4.94364]
[1742392585190,4.58757712,2022.8,2022.7,9.88736]
[1742392585487,4.58757712,2023.0,2022.9,4.94324]
[1742392585890,4.58757712,2023.1,2023.0,4.94293]
[1742392586055,4.58757712,2023.4,2023.3,4.94242]
[1742392586769,17.1,2023.7,2023.4,4.94195]
[1742392587087,6.37277712,2023.6,2023.4,4.94195]
[1742392587260,6.37277712,2023.6,2023.5,4.94193]
[1742392588077,4.58757712,2023.6,2023.5,4.94193]
[1742392589558,5.40937712,2023.6,2023.3,4.94239]
[1742392589759,4.58757712,2023.4,2023.3,7.94239]
[1742392590972,4.58757712,2023.6,2023.4,4.94212]
[1742392591289,12.26917483,2023.6,2023.3,3.0]
[1742392591457,4.58757712,2023.4,2023.3,3.0]
[1742392591858,4.58757712,2023.4,2023.3,7.94242]
[1742392592970,4.58757712,2023.5,2023.4,4.94207]
[1742392593178,4.58757712,2023.7,2023.5,4.94184]
[1742392593499,4.58757712,2023.7,2023.6,4.94168]
[1742392593897,4.58757712,2023.7,2023.4,4.9421]
[1742392594201,0.7937,2023.4,2023.0,5.75175]
[1742392594374,9.53053712,2023.1,2022.7,0.8059]
[1742392594578,4.58757712,2022.9,2022.8,4.94364]
[1742392594801,4.58757712,2023.1,2022.9,4.94328]
[1742392595012,4.58757712,2023.2,2023.0,4.94315]
[1742392595173,5.12570483,2023.2,2023.0,4.94315]
[1742392595370,5.12570483,2023.2,2022.9,4.94325]
[1742392595695,4.58757712,2023.2,2023.1,4.9429]
[1742392596987,4.58757712,2023.2,2023.0,4.94308]
[1742392597167,4.58757712,2023.2,2023.0,4.94304]
[1742392597371,4.58757712,2023.2,2023.0,4.94303]
[1742392597767,5.38127712,2023.4,2023.2,4.94253]
[1742392598008,4.94253,2023.2,2023.0,7.94315]
[1742392598229,4.58757712,2023.1,2023.0,3.0]
[1742392598386,4.58757712,2023.1,2022.9,3.0]
[1742392598584,4.58757712,2023.1,2022.9,7.94338]
[1742392598790,4.58757712,2023.1,2022.8,4.94364]
[1742392599099,4.58757712,2023.1,2023.0,4.94315]
[1742392601613,4.58757712,2023.1,2022.9,4.94327]
[1742392602110,10.48357383,2023.1,2022.8,7.94346]
[1742392602274,4.58757712,2022.9,2022.8,7.94346]
[1742392602674,4.58757712,2022.9,2022.7,4.94386]
[1742392603086,4.58757712,2022.9,2022.7,9.88756]
[1742392603292,4.58757712,2022.9,2022.8,4.94364]
[1742392603604,4.58757712,2022.9,2022.7,4.9437]
[1742392603808,4.58757712,2022.9,2022.8,4.94364]
[1742392604408,4.58757712,2023.1,2023.0,4.94315]
[1742392604712,4.58757712,2023.1,2022.9,9.88667]
[1742392605010,4.58757712,2023.1,2022.9,4.94328]
[1742392605011,5.54058683,2023.1,2022.9,4.94328]
[1742392605410,5.54058683,2023.1,2023.0,4.94315]
[1742392605599,4.58757712,2023.1,2023.0,4.94315]
[1742392605911,4.58757712,2023.3,2023.1,4.94274]
[1742392606397,4.58757712,2023.5,2023.3,4.94223]
[1742392606607,7.9370717,2023.5,2023.2,4.94253]
[1742392606803,7.9370717,2023.5,2023.3,9.88451]
[1742392606999,7.9370717,2023.5,2023.3,9.8845]
[1742392607198,4.58757712,2023.5,2023.3,4.94222]
[1742392607391,4.58757712,2023.5,2023.2,4.94263]
[1742392607587,4.58757712,2023.5,2023.0,7.94312]
[1742392607909,0.7838,2023.9,2023.3,0.7831]
[1742392608110,5.73533895,2023.9,2023.7,4.94134]
[1742392608312,4.58757712,2023.9,2023.7,4.94134]
[1742392608483,4.58757712,2023.9,2023.7,9.88269]
[1742392608885,4.58757712,2023.9,2023.7,4.94133]
[1742392609085,4.58757712,2023.9,2023.8,4.94119]
[1742392609383,4.58757712,2023.9,2023.7,4.94133]
[1742392609588,4.58757712,2023.9,2023.7,4.94129]
[1742392609786,4.58757712,2023.9,2023.7,9.88259]
[1742392610119,4.58757712,2023.9,2023.8,4.94119]
[1742392610798,4.58757712,2023.9,2023.7,4.94129]
[1742392610998,4.58757712,2023.9,2023.8,4.94119]
[1742392611418,6.1919,2023.7,2023.6,4.94167]
[1742392611587,6.1919,2023.7,2023.5,3.0]
[1742392611588,5.36837712,2023.7,2023.5,3.0]
[1742392611784,4.58757712,2023.7,2023.5,9.88373]
[1742392611990,4.58757712,2023.7,2023.5,4.94182]
[1742392612411,4.58757712,2023.7,2023.2,3.0]
[1742392612621,4.58757712,2023.7,2023.6,4.94168]
[1742392612819,6.42388956,2023.9,2023.7,4.94133]
[1742392613199,0.68002231,2023.8,2023.1,4.12952]
[1742392613505,4.58757712,2023.5,2023.4,4.94217]
[1742392613826,4.58757712,2023.5,2023.3,4.94241]
[1742392613999,4.58757712,2023.5,2023.4,4.94217]
[1742392614530,4.58757712,2023.7,2023.5,4.94175]
[1742392614736,5.79206431,2023.7,2023.5,4.94175]
[1742392615437,4.58757712,2023.7,2023.6,4.94168]
[1742392615806,5.36837712,2023.9,2023.7,4.94124]
[1742392616108,5.36837712,2023.9,2023.6,9.8832]
[1742392616318,7.01171492,2023.9,2023.7,4.9414]
[1742392617214,4.58757712,2023.9,2023.8,4.94119]
[1742392617631,4.58757712,2023.9,2023.7,4.9414]
[1742392618340,4.58757712,2023.9,2023.8,4.94119]
[1742392618734,4.58757712,2023.9,2023.7,4.94128]
[1742392619040,6.11489883,2023.9,2023.6,9.88314]
[1742392619208,4.58757712,2023.7,2023.6,4.94155]
[1742392619408,4.58757712,2023.9,2023.8,4.94101]
[1742392619720,4.58757712,2024.0,2023.8,9.88221]
[1742392619923,4.58757712,2024.0,2023.9,4.94095]
[1742392620117,4.58757712,2024.0,2023.8,4.9411]
[1742392620324,4.58757712,2024.0,2023.9,4.94095]
[1742392620655,5.33159208,2024.0,2023.7,4.94143]
[1742392620853,4.58757712,2023.8,2023.7,4.94143]
[1742392621620,4.58757712,2023.9,2023.8,4.94098]
[1742392621845,21.68057712,2024.2,2024.1,4.94046]
[1742392622140,4.58757712,2024.4,2024.3,4.93984]
[1742392622344,4.93984,2024.3,2024.2,4.94016]
[1742392622648,4.58757712,2024.4,2024.2,9.88027]
[1742392623042,4.58757712,2024.4,2024.3,4.93997]
[1742392623245,4.58757712,2024.4,2024.2,4.94011]
[1742392623453,0.7866,2024.3,2023.5,0.3094]
[1742392623653,4.58757712,2023.7,2023.5,4.94189]
[1742392623866,4.58757712,2023.7,2023.5,9.88366]
[1742392624055,5.37417712,2023.9,2023.8,4.94119]
[1742392624222,0.37992975,2024.1,2023.8,4.941]
[1742392624223,4.58757712,2024.0,2023.8,4.941]
[1742392624428,5.12234483,2024.0,2023.7,4.94131]
[1742392624626,4.58757712,2023.8,2023.7,4.94129]
[1742392625254,4.58757712,2024.2,2023.7,0.3094]
[1742392625554,5.12894483,2024.4,2024.3,4.93997]
[1742392625759,4.58757712,2024.4,2024.1,4.94029]
[1742392625935,4.58757712,2024.2,2024.1,4.94029]
[1742392626260,0.7959,2024.1,2024.0,4.94071]
[1742392626453,4.58757712,2024.2,2024.1,4.94046]
[1742392626765,5.38347712,2024.4,2024.1,4.94031]
[1742392626965,5.92182483,2024.4,2024.1,9.88067]
[1742392627258,0.7959,2024.4,2024.0,4.94056]
[1742392627463,4.58757712,2024.3,2024.1,4.94034]
[1742392627666,4.58757712,2024.3,2024.1,4.94032]
[1742392627831,4.58757712,2024.3,2024.2,4.94022]
[1742392629049,4.58757712,2024.5,2024.3,4.93997]
[1742392629250,4.58757712,2024.5,2024.4,4.93973]
[1742392629451,4.58757712,2024.5,2024.3,4.93991]
[1742392629867,4.58757712,2024.5,2024.3,4.93989]
[1742392630069,4.58757712,2024.5,2024.4,4.93973]
[1742392630268,17.089,2024.8,2024.7,4.939]
[1742392630435,4.58757712,2024.9,2024.6,4.93911]
[1742392630635,4.58757712,2024.7,2024.6,4.93911]
[1742392631155,4.58757712,2025.1,2024.9,4.93836]
[1742392631464,4.58757712,2025.1,2024.7,4.93898]
[1742392631633,4.58757712,2024.9,2024.7,4.93887]
[1742392632368,4.58757712,2024.9,2024.7,4.93885]
[1742392632867,5.54014683,2024.9,2024.5,4.93926]
[1742392633038,4.58757712,2024.7,2024.5,4.93926]
[1742392633368,4.93959,2024.5,2024.2,0.3094]
[1742392633540,4.58757712,2024.3,2024.1,4.94029]
[1742392633735,4.58757712,2024.3,2024.2,4.94022]
[1742392633950,4.58757712,2024.3,2024.1,9.88065]
[1742392634331,4.58757712,2024.3,2024.2,4.94022]
[1742392634537,4.58757712,2024.6,2024.4,4.93961]
[1742392635032,6.76006773,2024.6,2024.3,4.93997]
[1742392635249,4.58757712,2024.4,2024.2,4.94019]
[1742392635433,4.58757712,2024.4,2024.3,4.93997]
[1742392635651,4.58757712,2024.4,2024.2,4.94019]
[1742392635962,4.58757712,2024.4,2024.2,4.94011]
[1742392636149,6.76006773,2024.6,2024.4,4.93971]
[1742392636367,1.16990877,2024.5,2024.4,4.93973]
[1742392636579,6.76006773,2024.6,2024.2,4.94006]
[1742392636761,4.94006,2024.2,2024.1,4.94046]
[1742392636959,5.34317712,2024.4,2024.2,4.9402]
[1742392637179,5.34317712,2024.4,2024.0,7.94069]
[1742392637380,5.34317712,2024.4,2023.6,5.9215405]
[1742392637381,9.52779712,2024.2,2023.8,4.94107]
[1742392637581,4.58757712,2024.0,2023.8,7.94107]
[1742392637805,4.58757712,2024.0,2023.9,4.94095]
[1742392637965,4.58757712,2024.0,2023.8,7.94107]
[1742392638162,0.8179,2023.9,2023.7,4.94141]
[1742392638366,0.8179,2023.9,2023.5,4.94189]
[1742392638367,4.58757712,2023.8,2023.5,4.94189]
[1742392638669,4.58757712,2023.8,2023.6,4.9416]
[1742392638881,4.58757712,2023.8,2023.6,4.94147]
[1742392639073,4.58757712,2023.8,2023.7,4.94144]
[1742392639493,0.8179,2023.9,2023.7,4.94144]
[1742392639684,4.58757712,2023.9,2023.7,4.94136]
[1742392639885,4.58757712,2023.9,2023.7,9.88268]
[1742392640063,4.58757712,2023.9,2023.7,4.94132]
[1742392640265,4.58757712,2023.9,2023.7,4.94128]
[1742392640489,4.58757712,2023.9,2023.8,4.94119]
[1742392640663,5.62175183,2023.9,2023.7,4.94128]
[1742392641881,1.03417471,2023.9,2023.8,4.94119]
[1742392642081,5.40127712,2024.1,2023.8,4.94119]
[1742392642282,4.58757712,2023.9,2023.7,4.94137]
[1742392642497,4.58757712,2023.9,2023.8,4.94119]
[1742392642867,4.58757712,2023.9,2023.7,4.94132]
[1742392643070,4.58757712,2023.9,2023.8,4.94119]
[1742392643293,5.40127712,2024.1,2023.9,4.94092]
[1742392643481,6.67216266,2024.1,2024.0,4.94071]
[1742392643677,4.58757712,2024.1,2024.0,4.94071]
[1742392644224,0.37573542,2024.4,2024.3,4.93977]
[1742392644883,4.58757712,2024.5,2024.3,4.93977]
[1742392645080,4.58757712,2024.5,2024.3,9.87959]
[1742392645286,4.58757712,2024.5,2024.4,4.93973]
[1742392645620,4.58757712,2024.7,2024.1,0.3094]
[1742392645796,4.58757712,2024.7,2024.5,4.93938]
[1742392645972,4.58757712,2024.7,2024.5,4.93936]
[1742392646423,4.58757712,2024.7,2024.5,9.87869]
[1742392646607,4.58757712,2024.7,2024.5,9.87865]
[1742392646786,4.58757712,2024.7,2024.6,4.93924]
[1742392646986,4.58757712,2024.9,2024.7,4.93877]
[1742392647185,4.58757712,2024.9,2024.7,9.87766]
[1742392647426,4.58757712,2024.9,2024.7,4.93877]
[1742392647597,4.58757712,2024.9,2024.6,9.8783]
[1742392647808,4.58757712,2024.7,2024.6,4.93908]
[1742392648476,4.58757712,2024.7,2024.6,4.93924]
[1742392648678,4.58757712,2024.7,2024.5,4.93945]
[1742392649371,6.03406583,2024.7,2024.5,4.93945]
[1742392649674,6.85236583,2024.7,2024.4,4.93964]
[1742392649904,11.79147583,2024.7,2024.4,4.93964]
[1742392650109,4.58757712,2024.5,2024.4,4.93973]
[1742392650642,4.58757712,2024.5,2024.3,4.93994]
[1742392651196,4.58757712,2024.5,2024.3,4.93986]
[1742392651640,5.40587712,2024.7,2024.4,4.93961]
[1742392651798,1.52836471,2024.6,2024.4,4.93961]
[1742392652138,4.58757712,2024.7,2024.5,4.93934]
[1742392652343,4.58757712,2024.7,2024.4,4.93967]
[1742392652653,4.58757712,2024.7,2024.4,4.9396]
[1742392652869,4.9396,2024.4,2024.3,4.93994]
[1742392653076,4.58757712,2024.5,2024.3,4.93994]
[1742392653639,4.58757712,2024.5,2024.3,9.87978]
[1742392653832,4.58757712,2024.5,2024.3,4.93984]
[1742392654222,4.58757712,2024.5,2024.2,4.94018]
[1742392654549,5.35927712,2024.5,2024.2,4.94004]
[1742392654752,5.35927712,2024.5,2024.3,4.93983]
[1742392654954,4.58757712,2024.7,2024.5,4.93947]